[Event "XXXIX Benasque Open 2019"]
[Site "Benasque"]
[Date "2019.07.08"]
[Round "5.2"]
[White "Admiraal, Miguoel"]
[Black "Kharitonov, Alexandr"]
[Result "1/2-1/2"]
[ECO "B12"]
[WhiteElo "2504"]
[BlackElo "2540"]
[Annotator "ChessBase"]
[PlyCount "20"]
[EventDate "2019.07.04"]
[EventType "swiss"]
[EventCountry "ESP"]
[SourceTitle "playchess.com"]
[Source "ChessBase"]
[SourceQuality "1"]
[TimeControl "5400+30"]

1. e4 {[%emt 0:02:29]} c6 {[%emt 0:00:00]} 2. d4 {[%emt 0:00:31]} d5 {[%emt 0:00:00]} 3. e5 {[%emt 0:00:38]} Bf5 {[%emt 0:00:01]} 4. Nf3 {[%emt 0:00:31]} e6 {[%emt 0:00:11]} 5. Be2 {[%emt 0:00:20]} Nd7 {[%emt 0:02:49]} 6. O-O {[%emt 0:02:26]} Bg6 {[%emt 0:00:15]} 7. c3 {[%emt 0:00:33]} Nh6 {[%emt 0:00:38]} 8. Bxh6 {[%emt 0:08:31]} gxh6 {[%emt 0:00:58]} 9. Re1 {[%emt 0:02:57]} Bg7 {[%emt 0:00:54]} 10. Na3 {[%emt 0:00:05]} O-O {[%emt 0:01:28]} 1/2-1/2

[Event "XXXIX Benasque Open 2019"]
[Site "Benasque"]
[Date "2019.07.08"]
[Round "5.5"]
[White "Raja Harshit"]
[Black "Banusz, Tamas"]
[Result "1/2-1/2"]
[ECO "B01"]
[WhiteElo "2434"]
[BlackElo "2626"]
[Annotator "RC"]
[PlyCount "129"]
[EventDate "2019.07.04"]
[EventType "swiss"]
[EventCountry "ESP"]
[SourceTitle "playchess.com"]
[Source "ChessBase"]
[SourceQuality "1"]
[TimeControl "5400+30"]

1. e4 {[%emt 0:00:13]} d5 {[%emt 0:00:00]} 2. exd5 {[%emt 0:00:25]} Qxd5 {[%emt 0:00:14]} 3. Nc3 {[%emt 0:00:34]} Qd8 {[%emt 0:00:00]} 4. d4 {[%emt 0:01:10]} Nf6 {[%emt 0:00:00]} 5. Nf3 {[%emt 0:01:12]} g6 {[%emt 0:00:02]} 6. Bc4 {[%emt 0:08:12]} Bg7 {[%emt 0:01:06]} 7. O-O {[%emt 0:00:12]} O-O {[%emt 0:00:08]} 8. h3 {[%emt 0:03:13]} a6 {[%emt 0:00:13]} 9. a4 {[%emt 0:06:04]} Nc6 {[%emt 0:01:03]} 10. Re1 {[%emt 0:01:39]} b6 {[%emt 0:00:41]} 11. Bf4 {[%emt 0:09:14]} Bb7 {[%emt 0:02:28]} 12. Qd2 {[%emt 0:02:14]} e6 {[%emt 0:02:10]} 13. Rad1 {[%emt 0:01:30]} Ne7 {[%emt 0:01:17]} 14. Ne5 {[%emt 0:02:30]} Nfd5 {[%emt 0:06:25]} 15. Nxd5 {[%emt 0:03:58]} Nxd5 {[%emt 0:01:21]} 16. Bh6 {[%emt 0:03:50]} Re8 {[%emt 0:10:50]} 17. Bxg7 {[%emt 0:08:45]} Kxg7 {[%emt 0:01:52]} 18. Ng4 {[%emt 0:00:34]} h5 {[%emt 0:05:25]} 19. Qh6+ {[%emt 0:05:31]} Kg8 {[%emt 0:00:05]} 20. Ne3 {[%emt 0:07:13]} Qf6 {[%emt 0:04:48]} 21. Nxd5 {[%emt 0:06:19]} exd5 {[%emt 0:03:12]} 22. Bd3 {[%emt 0:00:04]} c5 {[%emt 0:01:59]} 23. c3 {[%emt 0:00:23]} Bc6 {[%emt 0:03:39]} 24. Bc2 {[%emt 0:00:22]} a5 {[%emt 0:02:40]} 25. Qd2 {[%emt 0:03:34]} Kg7 {[%emt 0:01:46]} 26. Bb3 {[%emt 0:00:25]} c4 {[%emt 0:03:32]} 27. Bc2 {[%emt 0:00:04]} b5 {[%emt 0:01:29]} 28. axb5 {[%emt 0:02:55]} Bxb5 {[%emt 0:00:01]} 29. Re5 {[%emt 0:01:24]} Rxe5 {[%emt 0:02:37]} 30. dxe5 {[%emt 0:00:07]} Qxe5 {[%emt 0:00:03]} 31. Qxd5 {[%emt 0:01:48]} Qxd5 {[%emt 0:00:05]} 32. Rxd5 {[%emt 0:00:06]} Be8 {[%emt 0:00:14]} 33. Rc5 {[%emt 0:01:42]} Rb8 {[%emt 0:00:27]} 34. Rxc4 {[%emt 0:01:34]} Rxb2 {[%emt 0:00:05]} 35. Ba4 {[%emt 0:00:10]} Rb1+ {[%emt 0:02:13]} 36. Kh2 {[%emt 0:00:03]} Bxa4 {[%emt 0:02:03]} 37. Rxa4 {[%emt 0:00:02]} Rb5 {[%emt 0:00:15]} 38. Kg3 {[%emt 0:04:45]} Kf6 {[%emt 0:02:48]} 39. Kf4 {[%emt 0:02:23]} Ke6 {[%emt 0:00:18]} 40. Ke4 {[%emt 0:01:00]} Kd6 {[%emt 0:00:52]} 41. c4 {[%emt 0:04:01]} Re5+ {[%emt 0:05:08]} 42. Kd4 {[%emt 0:01:09]} Rf5 {[%emt 0:00:21]} 43. Ra2 {[%emt 0:01:12]} h4 {[%emt 0:00:20]} 44. Ke4 {[%emt 0:02:31]} Rc5 {[%emt 0:07:44]} 45. Kd4 {[%emt 0:00:42]} Rg5 {[%emt 0:00:17]} 46. f4 {[%emt 0:01:17]} Rf5 {[%emt 0:00:09]} 47. Ke4 {[%emt 0:00:13]} Kc6 {[%emt 0:00:43]} 48. Kf3 {[%emt 0:00:54]} Kb6 {[%emt 0:01:50]} 49. Kg4 {[%emt 0:00:26]} Rh5 {[%emt 0:00:38]} 50. f5 {[%emt 0:04:38]} Rxf5 {[%emt 0:01:48]} 51. Kxh4 {[%emt 0:00:02]} Rf4+ {[%emt 0:00:58]} 52. g4 {[%emt 0:00:13]} Rxc4 {[%emt 0:04:20]} 53. Kg5 {[%emt 0:00:02]} a4 {[%emt 0:00:59]} 54. Kf6 {[%emt 0:01:09]} Kb5 {[%emt 0:02:44]} 55. Kxf7 {[%emt 0:00:03]} g5 {[%emt 0:00:04]} 56. Kg6 {[%emt 0:00:05]} Rc5 {[%emt 0:00:03]} 57. Kh5 {[%emt 0:00:33]} Kb4 {[%emt 0:00:24]} 58. h4 {[%emt 0:00:04]} gxh4+ {[%emt 0:00:44]} 59. Kxh4 {[%emt 0:00:01]} Kb3 {[%emt 0:00:17]} 60. Ra1 {[%emt 0:00:20]} a3 {[%emt 0:00:05]} 61. g5 {[%emt 0:00:03]} Kb2 {[%emt 0:00:26]} 62. Rxa3 {[%emt 0:00:55]} Kxa3 {[%emt 0:00:05]} 63. g6 {[%emt 0:00:01]} Rc6 {[%emt 0:00:25]} 64. Kg5 {[%emt 0:00:04]} Rxg6+ {[%emt 0:00:03]} 65. Kxg6 {[%emt 0:00:02]} 1/2-1/2

[Event "XXXIX Benasque Open 2019"]
[Site "Benasque"]
[Date "2019.07.08"]
[Round "5.6"]
[White "Campora, Daniel H."]
[Black "Ter-Sahakyan, Samvel"]
[Result "0-1"]
[ECO "B51"]
[WhiteElo "2420"]
[BlackElo "2625"]
[Annotator "RC"]
[PlyCount "76"]
[EventDate "2019.07.04"]
[EventType "swiss"]
[EventCountry "ESP"]
[SourceTitle "playchess.com"]
[Source "ChessBase"]
[SourceQuality "1"]
[TimeControl "5400+30"]

1. e4 {[%emt 0:00:00]} c5 {[%emt 0:00:00]} 2. Nf3 {[%emt 0:00:00]} d6 {[%emt 0:00:00]} 3. Bb5+ {[%emt 0:00:21]} Nd7 {[%emt 0:00:00]} 4. O-O {[%emt 0:01:14]} a6 {[%emt 0:00:08]} 5. Bd3 {[%emt 0:02:07]} Ngf6 {[%emt 0:00:10]} 6. Re1 {[%emt 0:00:44]} e6 {[%emt 0:03:15]} 7. c3 {[%emt 0:00:56]} b5 {[%emt 0:00:08]} 8. Bc2 {[%emt 0:00:36]} c4 {[%emt 0:00:08]} 9. d4 {[%emt 0:09:15]} cxd3 {[%emt 0:00:09]} 10. Qxd3 {[%emt 0:00:05]} Bb7 {[%emt 0:04:12]} 11. Nbd2 {[%emt 0:01:13]} Be7 {[%emt 0:02:07]} 12. Nb3 {[%emt 0:05:08]} O-O {[%emt 0:13:18]} 13. a4 {[%emt 0:05:11]} bxa4 {[%emt 0:14:43]} 14. Rxa4 {[%emt 0:00:07]} e5 {[%emt 0:00:05]} 15. Bg5 {[%emt 0:13:34]} Rb8 {[%emt 0:21:59]} 16. Nfd2 {[%emt 0:09:48]} Qc7 {[%emt 0:08:38]} 17. Raa1 {[%emt 0:11:31]} Rfc8 {[%emt 0:01:48]} 18. Qe2 {[%emt 0:01:51]} h6 {[%emt 0:05:57]} 19. Bxf6 {[%emt 0:01:53]} Nxf6 {[%emt 0:01:04]} 20. Bd3 {[%emt 0:01:40]} d5 {[%emt 0:00:42]} 21. exd5 {[%emt 0:09:45]} Bxd5 {[%emt 0:01:11]} 22. Bxa6 {[%emt 0:04:30]} Bxb3 {[%emt 0:12:06]} 23. Nxb3 {[%emt 0:00:04]} Rxb3 {[%emt 0:00:07]} 24. Bxc8 {[%emt 0:00:05]} Qxc8 {[%emt 0:00:06]} 25. Qxe5 {[%emt 0:03:34]} Bf8 {[%emt 0:00:04]} 26. Qe2 {[%emt 0:01:23]} Qb7 {[%emt 0:01:24]} 27. Ra2 {[%emt 0:00:08]} h5 {[%emt 0:02:37]} 28. h3 {[%emt 0:01:58]} h4 {[%emt 0:00:05]} 29. Rd1 {[%emt 0:02:26]} Rb5 {[%emt 0:03:52]} 30. Rd3 {[%emt 0:09:50]} g6 {[%emt 0:01:43]} 31. b4 {[%emt 0:00:23]} Kg7 {[%emt 0:01:45]} 32. Qe3 {[%emt 0:01:01]} Rb6 {[%emt 0:00:47]} 33. Qf4 {[%emt 0:02:20]} Re6 {[%emt 0:00:45]} 34. Re3 {[%emt 0:01:11]} Bd6 {[%emt 0:01:10]} 35. Qd4 {[%emt 0:00:06]} Rxe3 {[%emt 0:00:31]} 36. Qxe3 {[%emt 0:00:06]} Bb8 {[%emt 0:00:35]} 37. Kf1 {[%emt 0:01:53]} Qd5 {[%emt 0:00:18]} 38. Rd2 {[%emt 0:00:18]} Qc4+ {[%emt 0:00:33]} 0-1

[Event "XXXIX Benasque Open 2019"]
[Site "Benasque"]
[Date "2019.07.08"]
[Round "5.7"]
[White "Deac, Bogdan-Daniel"]
[Black "Lalic, Bogdan"]
[Result "1/2-1/2"]
[ECO "B76"]
[WhiteElo "2621"]
[BlackElo "2411"]
[Annotator "RC"]
[PlyCount "88"]
[EventDate "2019.07.04"]
[EventType "swiss"]
[EventCountry "ESP"]
[SourceTitle "playchess.com"]
[Source "ChessBase"]
[SourceQuality "1"]
[TimeControl "5400+30"]

1. e4 {[%emt 0:00:00]} c5 {[%emt 0:00:00]} 2. Nf3 {[%emt 0:00:00]} d6 {[%emt 0:00:00]} 3. d4 {[%emt 0:03:00]} cxd4 {[%emt 0:00:00]} 4. Nxd4 {[%emt 0:00:06]} Nf6 {[%emt 0:00:02]} 5. Nc3 {[%emt 0:00:04]} g6 {[%emt 0:00:09]} 6. Be3 {[%emt 0:01:52]} Bg7 {[%emt 0:00:07]} 7. f3 {[%emt 0:00:02]} Nc6 {[%emt 0:00:16]} 8. Qd2 {[%emt 0:00:02]} O-O {[%emt 0:00:09]} 9. O-O-O {[%emt 0:00:10]} d5 {[%emt 0:00:14]} 10. exd5 {[%emt 0:00:24]} Nxd5 {[%emt 0:00:08]} 11. Nxc6 {[%emt 0:00:05]} bxc6 {[%emt 0:00:06]} 12. Bd4 {[%emt 0:00:04]} Bxd4 {[%emt 0:01:51]} 13. Qxd4 {[%emt 0:00:05]} Qb6 {[%emt 0:00:21]} 14. Na4 {[%emt 0:03:58]} Qc7 {[%emt 0:00:09]} 15. g3 {[%emt 0:18:05]} Bf5 {[%emt 0:02:11]} 16. Bc4 {[%emt 0:01:32]} Rfd8 {[%emt 0:00:53]} 17. Bb3 {[%emt 0:01:08]} Rd6 {[%emt 0:07:34]} 18. Rhe1 {[%emt 0:03:21]} Rad8 {[%emt 0:00:38]} 19. Qe5 {[%emt 0:00:39]} h5 {[%emt 0:06:07]} 20. a3 {[%emt 0:06:15]} Qa5 {[%emt 0:02:31]} 21. Qe2 {[%emt 0:02:35]} Be6 {[%emt 0:02:34]} 22. h4 {[%emt 0:13:10]} Nc7 {[%emt 0:03:12]} 23. Bxe6 {[%emt 0:04:52]} Rxd1+ {[%emt 0:01:53]} 24. Rxd1 {[%emt 0:00:07]} Rxd1+ {[%emt 0:00:08]} 25. Qxd1 {[%emt 0:01:24]} Nxe6 {[%emt 0:00:09]} 26. Nc3 {[%emt 0:00:06]} Qe5 {[%emt 0:04:11]} 27. Qg1 {[%emt 0:00:08]} c5 {[%emt 0:00:51]} 28. Qf2 {[%emt 0:05:32]} Nd4 {[%emt 0:01:55]} 29. f4 {[%emt 0:02:33]} Qf5 {[%emt 0:01:27]} 30. b4 {[%emt 0:00:07]} cxb4 {[%emt 0:12:34]} 31. axb4 {[%emt 0:03:28]} e5 {[%emt 0:05:47]} 32. Qd2 {[%emt 0:00:40]} Qe6 {[%emt 0:01:45]} 33. Kb2 {[%emt 0:09:03]} Qc4 {[%emt 0:00:54]} 34. Ne4 {[%emt 0:00:12]} Nc6 {[%emt 0:08:40]} 35. Nf6+ {[%emt 0:00:52]} Kg7 {[%emt 0:00:06]} 36. Nd5 {[%emt 0:00:08]} a5 {[%emt 0:00:59]} 37. bxa5 {[%emt 0:04:06]} Qb5+ {[%emt 0:00:08]} 38. Kc1 {[%emt 0:01:04]} Nxa5 {[%emt 0:02:59]} 39. fxe5 {[%emt 0:00:29]} Qc5 {[%emt 0:04:56]} 40. Qd3 {[%emt 0:09:04]} Nc4 {[%emt 0:00:52]} 41. c3 {[%emt 0:00:07]} Qa3+ {[%emt 0:04:40]} 42. Kc2 {[%emt 0:00:02]} Qa2+ {[%emt 0:01:35]} 43. Kc1 {[%emt 0:00:03]} Qa3+ {[%emt 0:00:13]} 44. Kc2 {[%emt 0:00:06]} Qa2+ {[%emt 0:00:06]} 1/2-1/2

[Event "XXXIX Benasque Open 2019"]
[Site "Benasque"]
[Date "2019.07.08"]
[Round "5.8"]
[White "Gines Esteo, Pedro Antonio"]
[Black "Bartel, Mateusz"]
[Result "0-1"]
[ECO "A06"]
[WhiteElo "2404"]
[BlackElo "2600"]
[Annotator "RC"]
[PlyCount "140"]
[EventDate "2019.07.04"]
[EventType "swiss"]
[EventCountry "ESP"]
[SourceTitle "playchess.com"]
[Source "ChessBase"]
[SourceQuality "1"]
[TimeControl "5400+30"]

1. Nf3 {[%emt 0:04:20]} d5 {[%emt 0:00:00]} 2. b3 {[%emt 0:00:55]} Bg4 {[%emt 0:03:19]} 3. Bb2 {[%emt 0:00:15]} Bxf3 {[%emt 0:05:00]} 4. exf3 {[%emt 0:00:08]} e6 {[%emt 0:00:09]} 5. f4 {[%emt 0:00:05]} Nd7 {[%emt 0:01:03]} 6. g3 {[%emt 0:06:49]} Ngf6 {[%emt 0:00:13]} 7. Bg2 {[%emt 0:00:07]} g6 {[%emt 0:00:42]} 8. Qe2 {[%emt 0:02:23]} c6 {[%emt 0:01:01]} 9. d3 {[%emt 0:01:37]} Qa5+ {[%emt 0:04:21]} 10. Qd2 {[%emt 0:09:30]} Bb4 {[%emt 0:01:51]} 11. c3 {[%emt 0:00:07]} Bd6 {[%emt 0:00:19]} 12. O-O {[%emt 0:00:21]} O-O {[%emt 0:00:18]} 13. c4 {[%emt 0:01:27]} Qxd2 {[%emt 0:03:04]} 14. Nxd2 {[%emt 0:00:23]} a5 {[%emt 0:00:04]} 15. a3 {[%emt 0:13:43]} Rfc8 {[%emt 0:05:04]} 16. d4 {[%emt 0:03:48]} Be7 {[%emt 0:04:27]} 17. Rfc1 {[%emt 0:13:31]} Ne8 {[%emt 0:02:26]} 18. Rc2 {[%emt 0:05:31]} a4 {[%emt 0:03:52]} 19. b4 {[%emt 0:00:11]} dxc4 {[%emt 0:00:07]} 20. Nxc4 {[%emt 0:00:04]} Nd6 {[%emt 0:00:07]} 21. Nxd6 {[%emt 0:05:58]} Bxd6 {[%emt 0:00:03]} 22. Rac1 {[%emt 0:00:15]} Nb6 {[%emt 0:01:45]} 23. Bf1 {[%emt 0:14:54]} Rd8 {[%emt 0:06:17]} 24. Kg2 {[%emt 0:00:30]} Bf8 {[%emt 0:00:44]} 25. Kf3 {[%emt 0:03:40]} Rd5 {[%emt 0:01:19]} 26. Ke3 {[%emt 0:03:10]} Rad8 {[%emt 0:00:08]} 27. Bg2 {[%emt 0:01:51]} R5d7 {[%emt 0:00:19]} 28. Bf1 {[%emt 0:03:13]} Nd5+ {[%emt 0:05:05]} 29. Kf3 {[%emt 0:00:06]} Nc7 {[%emt 0:00:04]} 30. Rd2 {[%emt 0:02:16]} Bg7 {[%emt 0:00:29]} 31. Be2 {[%emt 0:00:11]} Kf8 {[%emt 0:03:38]} 32. Ke3 {[%emt 0:01:30]} Ke8 {[%emt 0:11:48]} 33. Rc5 {[%emt 0:00:51]} Nd5+ {[%emt 0:03:59]} 34. Kf3 {[%emt 0:00:29]} Ne7 {[%emt 0:00:49]} 35. Ra5 {[%emt 0:01:16]} b5 {[%emt 0:08:33]} 36. Ke4 {[%emt 0:00:01]} Nf5 {[%emt 0:00:39]} 37. Ra6 {[%emt 0:00:50]} Rd6 {[%emt 0:00:07]} 38. g4 {[%emt 0:02:09]} Ne7 {[%emt 0:00:02]} 39. h3 {[%emt 0:00:25]} f5+ {[%emt 0:02:50]} 40. Ke3 {[%emt 0:00:17]} Nd5+ {[%emt 0:00:15]} 41. Kf3 {[%emt 0:00:01]} Nc7 {[%emt 0:00:34]} 42. Rb6 {[%emt 0:01:20]} Nd5 {[%emt 0:05:31]} 43. Rb7 {[%emt 0:00:15]} R6d7 {[%emt 0:00:32]} 44. Rxd7 {[%emt 0:00:06]} Kxd7 {[%emt 0:01:01]} 45. Rc2 {[%emt 0:00:51]} fxg4+ {[%emt 0:02:20]} 46. hxg4 {[%emt 0:00:08]} Rf8 {[%emt 0:00:06]} 47. Kg3 {[%emt 0:01:10]} Rxf4 {[%emt 0:00:20]} 48. Bf3 {[%emt 0:00:27]} g5 {[%emt 0:02:51]} 49. Rd2 {[%emt 0:00:02]} Bf8 {[%emt 0:01:35]} 50. Rd1 {[%emt 0:00:46]} Bd6 {[%emt 0:00:13]} 51. Kg2 {[%emt 0:00:01]} Rf6 {[%emt 0:00:55]} 52. Rh1 {[%emt 0:01:13]} Nf4+ {[%emt 0:02:01]} 53. Kf1 {[%emt 0:00:20]} Nd3 {[%emt 0:03:19]} 54. Bxc6+ {[%emt 0:00:36]} Kc8 {[%emt 0:00:01]} 55. Bxb5 {[%emt 0:00:34]} Rxf2+ {[%emt 0:01:55]} 56. Kg1 {[%emt 0:00:01]} Rf3 {[%emt 0:00:10]} 57. Bxd3 {[%emt 0:00:59]} Rxd3 {[%emt 0:00:02]} 58. Bc1 {[%emt 0:00:11]} h6 {[%emt 0:02:18]} 59. Kf2 {[%emt 0:00:38]} Bf8 {[%emt 0:00:03]} 60. Ke2 {[%emt 0:00:41]} Rxd4 {[%emt 0:00:20]} 61. Rf1 {[%emt 0:00:02]} Be7 {[%emt 0:01:50]} 62. Be3 {[%emt 0:00:58]} Rxg4 {[%emt 0:00:50]} 63. Rf7 {[%emt 0:00:19]} Bd6 {[%emt 0:00:33]} 64. b5 {[%emt 0:00:25]} Bxa3 {[%emt 0:02:05]} 65. Ba7 {[%emt 0:00:45]} Bd6 {[%emt 0:00:34]} 66. Rh7 {[%emt 0:00:21]} a3 {[%emt 0:01:00]} 67. Rh8+ {[%emt 0:00:15]} Kd7 {[%emt 0:00:14]} 68. Rh7+ {[%emt 0:00:04]} Ke8 {[%emt 0:00:10]} 69. Rxh6 {[%emt 0:01:22]} a2 {[%emt 0:00:15]} 70. Rh1 {[%emt 0:00:25]} Ra4 {[%emt 0:00:30]} 0-1

[Event "XXXIX Benasque Open 2019"]
[Site "Benasque"]
[Date "2019.07.08"]
[Round "5.9"]
[White "Markus, Robert"]
[Black "Plazuelo Pascual, Juan"]
[Result "1/2-1/2"]
[ECO "A40"]
[WhiteElo "2595"]
[BlackElo "2403"]
[Annotator "ChessBase"]
[PlyCount "75"]
[EventDate "2019.07.04"]
[EventType "swiss"]
[EventCountry "ESP"]
[SourceTitle "playchess.com"]
[Source "ChessBase"]
[SourceQuality "1"]
[TimeControl "5400+30"]

1. d4 {[%emt 0:00:00]} e6 {[%emt 0:00:00]} 2. c4 {[%emt 0:00:42]} b6 {[%emt 0:00:02]} 3. e4 {[%emt 0:01:15]} Bb4+ {[%emt 0:00:16]} 4. Bd2 {[%emt 0:02:34]} Bxd2+ {[%emt 0:00:12]} 5. Qxd2 {[%emt 0:07:39]} d5 {[%emt 0:00:15]} 6. cxd5 {[%emt 0:06:31]} exd5 {[%emt 0:00:09]} 7. Bb5+ {[%emt 0:00:16]} c6 {[%emt 0:05:34]} 8. Bd3 {[%emt 0:00:26]} Ne7 {[%emt 0:03:46]} 9. Nc3 {[%emt 0:02:30]} O-O {[%emt 0:07:17]} 10. Nge2 {[%emt 0:01:47]} Ba6 {[%emt 0:07:22]} 11. Bxa6 {[%emt 0:01:00]} Nxa6 {[%emt 0:01:53]} 12. e5 {[%emt 0:00:19]} Qd7 {[%emt 0:01:59]} 13. O-O {[%emt 0:01:15]} c5 {[%emt 0:01:38]} 14. Nd1 {[%emt 0:10:57]} Nc6 {[%emt 0:11:01]} 15. f4 {[%emt 0:01:32]} f6 {[%emt 0:03:12]} 16. Nf2 {[%emt 0:10:07]} fxe5 {[%emt 0:04:53]} 17. dxe5 {[%emt 0:02:03]} Nc7 {[%emt 0:08:45]} 18. Ne4 {[%emt 0:04:17]} d4 {[%emt 0:02:36]} 19. N2g3 {[%emt 0:02:06]} Nd5 {[%emt 0:04:07]} 20. Rf3 {[%emt 0:03:12]} Rad8 {[%emt 0:01:31]} 21. Nd6 {[%emt 0:02:57]} Ne3 {[%emt 0:02:31]} 22. Nge4 {[%emt 0:03:29]} Ne7 {[%emt 0:01:46]} 23. b4 {[%emt 0:05:50]} N7d5 {[%emt 0:08:16]} 24. bxc5 {[%emt 0:00:47]} Nxf4 {[%emt 0:01:17]} 25. Rxf4 {[%emt 0:00:55]} Rxf4 {[%emt 0:02:09]} 26. Qxd4 {[%emt 0:00:05]} Nxg2 {[%emt 0:07:30]} 27. Qd5+ {[%emt 0:04:24]} Kh8 {[%emt 0:00:26]} 28. Ng5 {[%emt 0:01:22]} Ne3 {[%emt 0:02:33]} 29. Ndf7+ {[%emt 0:03:44]} Rxf7 {[%emt 0:00:52]} 30. Nxf7+ {[%emt 0:00:05]} Kg8 {[%emt 0:00:03]} 31. Nh6+ {[%emt 0:04:36]} Kh8 {[%emt 0:00:03]} 32. Qxd7 {[%emt 0:00:07]} Rxd7 {[%emt 0:00:04]} 33. e6 {[%emt 0:00:06]} Re7 {[%emt 0:03:35]} 34. Nf7+ {[%emt 0:02:00]} Kg8 {[%emt 0:00:01]} 35. c6 {[%emt 0:00:08]} Nd5 {[%emt 0:02:35]} 36. Ng5 {[%emt 0:01:45]} h6 {[%emt 0:02:27]} 37. Rd1 {[%emt 0:00:28]} Nc7 {[%emt 0:00:04]} 38. Rd8+ {[%emt 0:05:10]} 1/2-1/2

[Event "XXXIX Benasque Open 2019"]
[Site "Benasque"]
[Date "2019.07.08"]
[Round "5.10"]
[White "Valmana Canto, Jaime"]
[Black "Rasmussen, Allan Stig"]
[Result "1/2-1/2"]
[ECO "B12"]
[WhiteElo "2401"]
[BlackElo "2569"]
[Annotator "ChessBase"]
[PlyCount "136"]
[EventDate "2019.07.04"]
[EventType "swiss"]
[EventCountry "ESP"]
[SourceTitle "playchess.com"]
[Source "ChessBase"]
[SourceQuality "1"]
[TimeControl "5400+30"]

1. e4 {[%emt 0:03:56]} c6 {[%emt 0:00:00]} 2. d4 {[%emt 0:00:21]} d5 {[%emt 0:00:00]} 3. e5 {[%emt 0:00:06]} Bf5 {[%emt 0:00:00]} 4. h4 {[%emt 0:00:07]} h5 {[%emt 0:00:09]} 5. c4 {[%emt 0:00:45]} e6 {[%emt 0:00:09]} 6. Nc3 {[%emt 0:00:14]} Ne7 {[%emt 0:00:30]} 7. Nge2 {[%emt 0:05:38]} Nd7 {[%emt 0:00:18]} 8. Ng3 {[%emt 0:00:30]} Bg6 {[%emt 0:00:06]} 9. Bg5 {[%emt 0:00:42]} Qb6 {[%emt 0:01:51]} 10. Qd2 {[%emt 0:04:31]} dxc4 {[%emt 0:00:46]} 11. Bxc4 {[%emt 0:00:04]} O-O-O {[%emt 0:00:18]} 12. O-O-O {[%emt 0:00:29]} Nxe5 13. Na4 {[%emt 0:00:25]} Qc7 {[%emt 0:06:05]} 14. Bf4 {[%emt 0:00:07]} Nxc4 {[%emt 0:00:00]} 15. Bxc7 {[%emt 0:00:00]} Nxd2 {[%emt 0:00:55]} 16. Bxd8 {[%emt 0:02:53]} Nc4 {[%emt 0:00:07]} 17. Bxe7 {[%emt 0:30:04]} Bxe7 {[%emt 0:05:14]} 18. Nc3 {[%emt 0:02:41]} Rd8 {[%emt 0:07:56]} 19. Nce2 {[%emt 0:00:12]} Bd6 {[%emt 0:04:57]} 20. Nf1 {[%emt 0:07:58]} Be4 {[%emt 0:05:21]} 21. Rg1 {[%emt 0:11:51]} Be7 {[%emt 0:10:03]} 22. Nfg3 {[%emt 0:02:47]} Bg6 {[%emt 0:03:27]} 23. Nf4 {[%emt 0:00:19]} Bxh4 {[%emt 0:02:15]} 24. Nxg6 {[%emt 0:05:26]} fxg6 {[%emt 0:06:16]} 25. Rge1 {[%emt 0:01:20]} Rf8 {[%emt 0:04:24]} 26. Ne4 {[%emt 0:03:37]} Bxf2 {[%emt 0:01:45]} 27. Rf1 {[%emt 0:00:54]} Be3+ {[%emt 0:02:38]} 28. Kc2 {[%emt 0:01:38]} Rd8 {[%emt 0:02:47]} 29. Kc3 {[%emt 0:03:35]} Nb6 30. Nc5 {[%emt 0:00:01]} e5 {[%emt 0:01:04]} 31. Ne6 {[%emt 0:07:43]} Re8 32. Kd3 {[%emt 0:00:07]} Nd5 {[%emt 0:10:46]} 33. Rf8 {[%emt 0:00:01]} Rxf8 {[%emt 0:00:24]} 34. Nxf8 Bxd4 {[%emt 0:01:01]} 35. Rf1 {[%emt 0:01:58]} Nf6 {[%emt 0:08:03]} 36. b3 {[%emt 0:00:30]} c5 {[%emt 0:00:34]} 37. Nxg6 {[%emt 0:01:08]} Kd7 {[%emt 0:00:20]} 38. Nh4 {[%emt 0:00:57]} e4+ {[%emt 0:00:31]} 39. Ke2 {[%emt 0:01:13]} Ke6 {[%emt 0:00:57]} 40. Nf5 {[%emt 0:00:12]} Nd5 {[%emt 0:01:06]} 41. Ng3 {[%emt 0:00:50]} Nc3+ {[%emt 0:02:06]} 42. Kd2 {[%emt 0:00:01]} h4 {[%emt 0:01:21]} 43. Ne2 {[%emt 0:01:25]} Nd5 {[%emt 0:01:17]} 44. Nf4+ {[%emt 0:00:33]} Nxf4 {[%emt 0:01:04]} 45. Rxf4 {[%emt 0:00:02]} e3+ {[%emt 0:00:14]} 46. Ke2 {[%emt 0:00:44]} g5 {[%emt 0:00:06]} 47. Rf8 {[%emt 0:00:05]} b5 {[%emt 0:01:24]} 48. Rb8 {[%emt 0:01:39]} b4 {[%emt 0:02:13]} 49. Kf3 {[%emt 0:01:34]} a5 {[%emt 0:01:26]} 50. Ra8 {[%emt 0:00:28]} Kf5 {[%emt 0:00:28]} 51. Rf8+ {[%emt 0:00:12]} Kg6 {[%emt 0:00:57]} 52. Ra8 {[%emt 0:00:03]} Kh5 {[%emt 0:01:23]} 53. Rxa5 {[%emt 0:01:10]} g4+ {[%emt 0:00:12]} 54. Ke2 {[%emt 0:00:21]} h3 {[%emt 0:00:55]} 55. gxh3 {[%emt 0:00:11]} gxh3 {[%emt 0:00:26]} 56. Ra7 {[%emt 0:00:08]} Kg6 {[%emt 0:01:16]} 57. Ra6+ {[%emt 0:00:21]} Bf6 {[%emt 0:01:30]} 58. Rd6 {[%emt 0:00:02]} h2 {[%emt 0:00:18]} 59. Rd1 {[%emt 0:00:02]} Kf5 {[%emt 0:02:58]} 60. Kxe3 {[%emt 0:01:00]} Bd4+ {[%emt 0:03:07]} 61. Kf3 {[%emt 0:00:02]} Ke5 {[%emt 0:01:01]} 62. Kg2 {[%emt 0:02:05]} Bg1 {[%emt 0:00:14]} 63. Rd3 {[%emt 0:00:17]} Ke4 {[%emt 0:00:28]} 64. Rh3 {[%emt 0:00:02]} Kf4 {[%emt 0:00:24]} 65. Rf3+ {[%emt 0:01:21]} Ke4 {[%emt 0:00:08]} 66. Rh3 {[%emt 0:00:17]} Kf4 {[%emt 0:00:05]} 67. Kf1 {[%emt 0:00:57]} Kg4 {[%emt 0:00:12]} 68. Kg2 {[%emt 0:00:17]} Kf4 {[%emt 0:00:41]} 1/2-1/2